Workbook

Sheet Registro Mensual
F1: Secretariado Ejecutivo del Sistema Nacional de Seguridad Publica
F2: REGISTRO DE AVANCE FÍSICO-FINANCIERO
F3: FORTASEG 2020
F5: FEDERAL | G5: ESTATAL | H5: COPARTICIPACIÓN | J5: OBSERVACIONES / COMENTARIOS DGVS
D6: RENDIMIENTOS FINANCIEROS (Del Mes): | F6: 12984.86 | G6: 0 | H6: 3275.47
A7: SUBSIDIO PARA EL FORTALECIMIENTO DEL DESEMPEÑO EN MATERIA DE SEGURIDAD PÚBLICA A LOS MUNICIPIOS Y DEMARCACIONES TERRITORIALES DE LA CIUDAD DE MÉXICO Y, EN SU CASO, A LAS ENTIDADES FEDERATIVAS QUE EJERZAN DE MANERA DIRECTA O COORDINADA LA FUNCIÓN PARA EL EJERCICIO FISCAL 2020
A8: RECURSO FEDERAL Y DE COPARTICIPACIÓN
A9: AUTORIZADO | K9: ADECUACIONES | O9: SITUACIÓN FINANCIERA
A10: Entidad Federativa | B10: Municipio | C10: Mes de Reporte | D10: Programa | E10: Subprograma | F10: Proyecto (Solo Prevención) | G10: Bien / Servicio | H10: Meta Convenida (Anexo Técnico) | I10: Monto Convenido (Anexo Técnico) | J10: Rendimientos Financieros Aplicados /1 | K10: Meta Adecuada /2 | L10: Monto Adecuado /3 | M10: Meta Modificada | N10: Convenido Modificado | O10: Meta Comprometida | P10: Monto Comprometido | Q10: Meta Devengada | R10: Monto Devengado | S10: Meta Pagada | T10: Monto Pagado | U10: Avance en la Meta | V10: Avance en el ejercicio del recurso | W10: Pendiente de Aplicar | X10: Meta Convenida revisada por el Área Técnica | Y10: Fecha de Revisión DGVS | Z10: OBSERVACIONES / COMENTARIOS DGVS
A11: Aguascalientes | B11: Aguascalientes | C11: Marzo | D11: Impulso al Modelo Nacional de Policía y Justicia Cívica. | E11: Dignificación Policial (Coparticipación) | G11: Reestructuración y Homologación Salarial | H11: 1 | I11: 6812115 | M11: =IF(AND(H11="", K11=""), "", (H11+K11)) -> 1 | N11: =IF(AND(I11="", L11=""), "", (I11+L11)) -> 6812115 | U11: =IF(AND(O11="",Q11="",S11=""),"",(O11+Q11+S11)) ->  | V11: =IF(AND(P11="", R11="", T11=""), "", (P11+R11+T11)) ->  | W11: =IFERROR(N11-V11, "") -> 
A12: Aguascalientes | B12: Aguascalientes | C12: Marzo | D12: Profesionalización, Certificación y Capacitación de los elementos policiales y las Instituciones de Seguridad Pública. | E12: Fortalecimiento de las Capacidades de Evaluación en Control de Confianza. | G12: Aplicación de evaluaciones a personal de nuevo ingreso | H12: 250 | I12: 1842000 | M12: =IF(AND(H12="", K12=""), "", (H12+K12)) -> 250 | N12: =IF(AND(I12="", L12=""), "", (I12+L12)) -> 1842000 | U12: =IF(AND(O12="",Q12="",S12=""),"",(O12+Q12+S12)) ->  | V12: =IF(AND(P12="", R12="", T12=""), "", (P12+R12+T12)) ->  | W12: =IFERROR(N12-V12, "") -> 
A13: Aguascalientes | B13: Aguascalientes | C13: Marzo | D13: Profesionalización, Certificación y Capacitación de los elementos policiales y las Instituciones de Seguridad Pública. | E13: Fortalecimiento de las Capacidades de Evaluación en Control de Confianza. | G13: Evaluaciones de personal en activo (Permanencias, Ascensos y Promociones). | H13: 247 | I13: 1819896 | M13: 247 | N13: 1819896
A14: Aguascalientes | B14: Aguascalientes | C14: Marzo | D14: Prevención Social de la Violencia y la Delincuencia con Participación Ciudadana | E14: Prevención Social de la Violencia y la Delincuencia con Participación Ciudadana. | F14: Jóvenes en Prevención | G14: Proyecto | H14: 3 | I14: 1485000 | M14: 3 | N14: 1485000
A15: Aguascalientes | B15: Aguascalientes | C15: Marzo | D15: Prevención Social de la Violencia y la Delincuencia con Participación Ciudadana | E15: Prevención Social de la Violencia y la Delincuencia con Participación Ciudadana. | F15: Jóvenes en Prevención | G15: Seguimiento y Evaluación | H15: 1 | I15: 165000 | M15: 1 | N15: 165000
A16: Aguascalientes | B16: Aguascalientes | C16: Marzo | D16: Profesionalización, Certificación y Capacitación de los elementos policiales y las Instituciones de Seguridad Pública. | E16: Profesionalización y Capacitación de los Elementos Policiales de Seguridad Pública. | G16: Becas para aspirantes a Policía Municipal | H16: 100 | I16: 2700000 | M16: 100 | N16: 2700000
A17: Aguascalientes | B17: Aguascalientes | C17: Marzo | D17: Profesionalización, Certificación y Capacitación de los elementos policiales y las Instituciones de Seguridad Pública. | E17: Profesionalización y Capacitación de los Elementos Policiales de Seguridad Pública. | G17: Evaluación del desempeño | H17: 289 | I17: 43350 | M17: 289 | N17: 43350
A18: Aguascalientes | B18: Aguascalientes | C18: Marzo | D18: Profesionalización, Certificación y Capacitación de los elementos policiales y las Instituciones de Seguridad Pública. | E18: Profesionalización y Capacitación de los Elementos Policiales de Seguridad Pública. | G18: Formación Inicial (Aspirantes) | H18: 100 | I18: 0 | M18: 100 | N18: 0
A19: Aguascalientes | B19: Aguascalientes | C19: Marzo | D19: Profesionalización, Certificación y Capacitación de los elementos policiales y las Instituciones de Seguridad Pública. | E19: Profesionalización y Capacitación de los Elementos Policiales de Seguridad Pública. | G19: Difusión Externa (Convocatoria para Policía Municipal) | H19: 1 | I19: 0 | M19: 1 | N19: 0
A20: Aguascalientes | B20: Aguascalientes | C20: Marzo | D20: Profesionalización, Certificación y Capacitación de los elementos policiales y las Instituciones de Seguridad Pública. | E20: Profesionalización y Capacitación de los Elementos Policiales de Seguridad Pública. | G20: Actas de Instauración y Sesiones de la Comisión del Servicio Profesional de Carrera y de la Comisión de Honor y Justicia | H20: 1 | I20: 0 | M20: 1 | N20: 0
A21: Aguascalientes | B21: Aguascalientes | C21: Marzo | D21: Sistema Nacional de Información | E21: Sistema Nacional de Información, bases de datos del SNSP. | G21: Escritorio | H21: 15 | I21: 75000 | M21: 15 | N21: 75000
A22: Aguascalientes | B22: Aguascalientes | C22: Marzo | D22: Sistema Nacional de Información | E22: Sistema Nacional de Información, bases de datos del SNSP. | G22: Silla | H22: 15 | I22: 60000 | M22: 15 | N22: 60000
A23: Aguascalientes | B23: Aguascalientes | C23: Marzo | D23: Equipamiento e Infraestructura de los Elementos Policiales y las Instituciones de Seguridad Pública | E23: Equipamiento de las Instituciones de Seguridad Pública. | G23: Candado de mano metálico | H23: 100 | I23: 82000 | M23: 100 | N23: 82000
A24: Aguascalientes | B24: Aguascalientes | C24: Marzo | D24: Equipamiento e Infraestructura de los Elementos Policiales y las Instituciones de Seguridad Pública | E24: Equipamiento de las Instituciones de Seguridad Pública. | G24: Casco balístico mínimo nivel III-A | H24: 25 | I24: 225000 | M24: 25 | N24: 225000
A25: Aguascalientes | B25: Aguascalientes | C25: Marzo | D25: Profesionalización, Certificación y Capacitación de los elementos policiales y las Instituciones de Seguridad Pública. | E25: Profesionalización y Capacitación de los Elementos Policiales de Seguridad Pública. | G25: Evaluación de Competencias Básicas de la Función para Policías Municipales | H25: 341 | I25: 341000 | M25: 341 | N25: 341000
A26: Aguascalientes | B26: Aguascalientes | C26: Marzo | D26: Profesionalización, Certificación y Capacitación de los elementos policiales y las Instituciones de Seguridad Pública. | E26: Profesionalización y Capacitación de los Elementos Policiales de Seguridad Pública. | G26: Formación Continua (CBFP) | H26: 341 | I26: 1193500 | M26: 341 | N26: 1193500
A27: Aguascalientes | B27: Aguascalientes | C27: Marzo | D27: Equipamiento e Infraestructura de los Elementos Policiales y las Instituciones de Seguridad Pública | E27: Equipamiento de las Instituciones de Seguridad Pública. | G27: Botas | H27: 1550 | I27: 2712500 | M27: 1550 | N27: 2712500
A28: Aguascalientes | B28: Aguascalientes | C28: Marzo | D28: Equipamiento e Infraestructura de los Elementos Policiales y las Instituciones de Seguridad Pública | E28: Equipamiento de las Instituciones de Seguridad Pública. | G28: Camisola y/o camisa | H28: 3100 | I28: 4960000 | M28: 3100 | N28: 4960000
A29: Aguascalientes | B29: Aguascalientes | C29: Marzo | D29: Equipamiento e Infraestructura de los Elementos Policiales y las Instituciones de Seguridad Pública | E29: Equipamiento de las Instituciones de Seguridad Pública. | G29: Fornitura | H29: 300 | I29: 600000 | M29: 300 | N29: 600000
A30: Aguascalientes | B30: Aguascalientes | C30: Marzo | D30: Equipamiento e Infraestructura de los Elementos Policiales y las Instituciones de Seguridad Pública | E30: Equipamiento de las Instituciones de Seguridad Pública. | G30: Gorra tipo beisbolera | H30: 1550 | I30: 465000 | M30: 1550 | N30: 465000
A31: Aguascalientes | B31: Aguascalientes | C31: Marzo | D31: Equipamiento e Infraestructura de los Elementos Policiales y las Instituciones de Seguridad Pública | E31: Equipamiento de las Instituciones de Seguridad Pública. | G31: Pantalón | H31: 3100 | I31: 4340000 | M31: 3100 | N31: 4340000
A32: Aguascalientes | B32: Aguascalientes | C32: Marzo | D32: Equipamiento e Infraestructura de los Elementos Policiales y las Instituciones de Seguridad Pública | E32: Equipamiento de las Instituciones de Seguridad Pública. | G32: Zapato tipo choclo | H32: 1550 | I32: 1705000 | M32: 1550 | N32: 1705000
A33: Aguascalientes | B33: Aguascalientes | C33: Marzo | D33: Equipamiento e Infraestructura de los Elementos Policiales y las Instituciones de Seguridad Pública | E33: Equipamiento de las Instituciones de Seguridad Pública. | G33: Municiones para arma corta | H33: 90000 | I33: 720000 | M33: 90000 | N33: 720000
A34: Aguascalientes | B34: Aguascalientes | C34: Marzo | D34: Equipamiento e Infraestructura de los Elementos Policiales y las Instituciones de Seguridad Pública | E34: Equipamiento de las Instituciones de Seguridad Pública. | G34: Municiones para arma larga | H34: 90000 | I34: 1170000 | M34: 90000 | N34: 1170000
A35: Aguascalientes | B35: Aguascalientes | C35: Marzo | D35: Equipamiento e Infraestructura de los Elementos Policiales y las Instituciones de Seguridad Pública | E35: Equipamiento de las Instituciones de Seguridad Pública. | G35: Arma corta | H35: 150 | I35: 1800000 | M35: 150 | N35: 1800000
A36: Aguascalientes | B36: Aguascalientes | C36: Marzo | D36: Equipamiento e Infraestructura de los Elementos Policiales y las Instituciones de Seguridad Pública | E36: Equipamiento de las Instituciones de Seguridad Pública. | G36: Arma larga | H36: 50 | I36: 2090000 | M36: 50 | N36: 2090000
A37: Aguascalientes | B37: Aguascalientes | C37: Marzo | D37: Sistema Nacional de Información | E37: Sistema Nacional de Información, bases de datos del SNSP. | G37: Equipo de seguridad informática (Firewall, IPS, Anti-Spam) | H37: 1 | I37: 70033 | M37: 1 | N37: 70033
A38: Aguascalientes | B38: Aguascalientes | C38: Marzo | D38: Sistema Nacional de Información | E38: Sistema Nacional de Información, bases de datos del SNSP. | G38: Computadora de escritorio | H38: 15 | I38: 495000 | M38: 15 | N38: 495000
A39: Aguascalientes | B39: Aguascalientes | C39: Marzo | D39: Sistema Nacional de Información | E39: Fortalecimiento de los Sistemas de Videovigilancia y Geolocalización. | G39: Cámara IP | H39: 15 | I39: 540000 | M39: 15 | N39: 540000
A40: Aguascalientes | B40: Aguascalientes | C40: Marzo | D40: Profesionalización, Certificación y Capacitación de los elementos policiales y las Instituciones de Seguridad Pública. | E40: Profesionalización y Capacitación de los Elementos Policiales de Seguridad Pública. | G40: Formación Continua (Cadena de custodia) (10% del estado de fuerza operativo) | H40: 134 | I40: 536000 | M40: 134 | N40: 536000
A41: Aguascalientes | B41: Aguascalientes | C41: Marzo | D41: Profesionalización, Certificación y Capacitación de los elementos policiales y las Instituciones de Seguridad Pública. | E41: Profesionalización y Capacitación de los Elementos Policiales de Seguridad Pública. | G41: Formación Continua (Derechos Humanos) (10% estado de fuerza operativo) | H41: 134 | I41: 536000 | M41: 134 | N41: 536000
A42: Aguascalientes | B42: Aguascalientes | C42: Marzo | D42: Profesionalización, Certificación y Capacitación de los elementos policiales y las Instituciones de Seguridad Pública. | E42: Profesionalización y Capacitación de los Elementos Policiales de Seguridad Pública. | G42: Formación Continua (Justicia Cívica) (10% del estado de fuerza operativo) | H42: 134 | I42: 670000 | M42: 134 | N42: 670000
A43: Aguascalientes | B43: Aguascalientes | C43: Marzo | D43: Profesionalización, Certificación y Capacitación de los elementos policiales y las Instituciones de Seguridad Pública. | E43: Profesionalización y Capacitación de los Elementos Policiales de Seguridad Pública. | G43: Formación Continua (Formación Mandos) (25 % estado de fuerza Mandos) | H43: 48 | I43: 619296 | M43: 48 | N43: 619296
A44: Aguascalientes | B44: Calvillo | C44: Marzo | D44: Sistema Nacional de Información | E44: Red Nacional de Radiocomunicación. | G44: Terminal digital móvil (radio) | H44: 2 | I44: 180000 | M44: 2 | N44: 180000
A45: Aguascalientes | B45: Calvillo | C45: Marzo | D45: Prevención Social de la Violencia y la Delincuencia con Participación Ciudadana | E45: Prevención Social de la Violencia y la Delincuencia con Participación Ciudadana. | F45: Prevención de Violencia Familiar y de Genero | G45: Proyecto | H45: 1 | I45: 550000 | M45: 1 | N45: 550000
A46: Aguascalientes | B46: Calvillo | C46: Marzo | D46: Prevención Social de la Violencia y la Delincuencia con Participación Ciudadana | E46: Prevención Social de la Violencia y la Delincuencia con Participación Ciudadana. | F46: Prevención de Violencia Familiar y de Genero | G46: Seguimiento y Evaluación | H46: 1 | I46: 50000 | M46: 1 | N46: 50000
A47: Aguascalientes | B47: Calvillo | C47: Marzo | D47: Profesionalización, Certificación y Capacitación de los elementos policiales y las Instituciones de Seguridad Pública. | E47: Fortalecimiento de las Capacidades de Evaluación en Control de Confianza. | G47: Aplicación de evaluaciones a personal de nuevo ingreso | H47: 15 | I47: 110520 | M47: 15 | N47: 110520
A48: Aguascalientes | B48: Calvillo | C48: Marzo | D48: Profesionalización, Certificación y Capacitación de los elementos policiales y las Instituciones de Seguridad Pública. | E48: Fortalecimiento de las Capacidades de Evaluación en Control de Confianza. | G48: Evaluaciones de personal en activo (Permanencias, Ascensos y Promociones). | H48: 43 | I48: 316824 | M48: 43 | N48: 316824
A49: Aguascalientes | B49: Calvillo | C49: Marzo | D49: Profesionalización, Certificación y Capacitación de los elementos policiales y las Instituciones de Seguridad Pública. | E49: Profesionalización y Capacitación de los Elementos Policiales de Seguridad Pública. | G49: Difusión interna de la Convocatoria para promoción para Policía Municipal | H49: 1 | I49: 5000 | M49: 1 | N49: 5000
A50: Aguascalientes | B50: Calvillo | C50: Marzo | D50: Profesionalización, Certificación y Capacitación de los elementos policiales y las Instituciones de Seguridad Pública. | E50: Profesionalización y Capacitación de los Elementos Policiales de Seguridad Pública. | G50: Difusión Externa (Convocatoria para Policía Municipal) | H50: 1 | I50: 30000 | M50: 1 | N50: 30000
A51: Aguascalientes | B51: Calvillo | C51: Marzo | D51: Profesionalización, Certificación y Capacitación de los elementos policiales y las Instituciones de Seguridad Pública. | E51: Profesionalización y Capacitación de los Elementos Policiales de Seguridad Pública. | G51: Evaluación de Competencias Básicas de la Función para Policías Municipales | H51: 7 | I51: 7700 | M51: 7 | N51: 7700
A52: Aguascalientes | B52: Calvillo | C52: Marzo | D52: Profesionalización, Certificación y Capacitación de los elementos policiales y las Instituciones de Seguridad Pública. | E52: Profesionalización y Capacitación de los Elementos Policiales de Seguridad Pública. | G52: Formación Inicial (Aspirantes) | H52: 5 | I52: 225000 | M52: 5 | N52: 225000
A53: Aguascalientes | B53: Calvillo | C53: Marzo | D53: Profesionalización, Certificación y Capacitación de los elementos policiales y las Instituciones de Seguridad Pública. | E53: Profesionalización y Capacitación de los Elementos Policiales de Seguridad Pública. | G53: Formación Inicial (Activos) | H53: 1 | I53: 23000 | M53: 1 | N53: 23000
A54: Aguascalientes | B54: Calvillo | C54: Marzo | D54: Profesionalización, Certificación y Capacitación de los elementos policiales y las Instituciones de Seguridad Pública. | E54: Profesionalización y Capacitación de los Elementos Policiales de Seguridad Pública. | G54: Formación Continua (Formación Mandos) (25 % estado de fuerza Mandos) | H54: 5 | I54: 62500 | M54: 5 | N54: 62500
A55: Aguascalientes | B55: Calvillo | C55: Marzo | D55: Profesionalización, Certificación y Capacitación de los elementos policiales y las Instituciones de Seguridad Pública. | E55: Profesionalización y Capacitación de los Elementos Policiales de Seguridad Pública. | G55: Evaluación del desempeño | H55: 16 | I55: 2400 | M55: 16 | N55: 2400
A56: Aguascalientes | B56: Calvillo | C56: Marzo | D56: Profesionalización, Certificación y Capacitación de los elementos policiales y las Instituciones de Seguridad Pública. | E56: Profesionalización y Capacitación de los Elementos Policiales de Seguridad Pública. | G56: Formación Continua Técnicas de Investigación | H56: 8 | I56: 32000 | M56: 8 | N56: 32000
A57: Aguascalientes | B57: Calvillo | C57: Marzo | D57: Profesionalización, Certificación y Capacitación de los elementos policiales y las Instituciones de Seguridad Pública. | E57: Profesionalización y Capacitación de los Elementos Policiales de Seguridad Pública. | G57: Formación Continua Intervención, control y manejo policial en disturbios | H57: 8 | I57: 32000 | M57: 8 | N57: 32000
A58: Aguascalientes | B58: Calvillo | C58: Marzo | D58: Profesionalización, Certificación y Capacitación de los elementos policiales y las Instituciones de Seguridad Pública. | E58: Profesionalización y Capacitación de los Elementos Policiales de Seguridad Pública. | G58: Becas para aspirantes a Policía Municipal | H58: 5 | I58: 135000 | M58: 5 | N58: 135000
A59: Aguascalientes | B59: Calvillo | C59: Marzo | D59: Impulso al Modelo Nacional de Policía y Justicia Cívica. | E59: Dignificación Policial (Coparticipación) | G59: Programa de Mejoras de las Condiciones Laborales | H59: 1 | I59: 1169809.4 | M59: 1 | N59: 1169809.4
A60: Aguascalientes | B60: Calvillo | C60: Marzo | D60: Impulso al Modelo Nacional de Policía y Justicia Cívica. | E60: Dignificación Policial (Coparticipación) | G60: Gastos de Operación | H60: 1 | I60: 60000 | M60: 1 | N60: 60000
A61: Aguascalientes | B61: Calvillo | C61: Marzo | D61: Equipamiento e Infraestructura de los Elementos Policiales y las Instituciones de Seguridad Pública | E61: Equipamiento de las Instituciones de Seguridad Pública. | G61: Caja de cartón para empaque de armas de fuego (arma larga y arma corta) | H61: 100 | I61: 2500 | M61: 100 | N61: 2500
A62: Aguascalientes | B62: Calvillo | C62: Marzo | D62: Equipamiento e Infraestructura de los Elementos Policiales y las Instituciones de Seguridad Pública | E62: Equipamiento de las Instituciones de Seguridad Pública. | G62: Cinta amarilla para delimitar el acceso “Línea de Policía Prohibido el Paso” (300 metros) | H62: 100 | I62: 6000 | M62: 100 | N62: 6000
A63: Aguascalientes | B63: Calvillo | C63: Marzo | D63: Equipamiento e Infraestructura de los Elementos Policiales y las Instituciones de Seguridad Pública | E63: Equipamiento de las Instituciones de Seguridad Pública. | G63: Cintillos plásticos, (paquete de 50 piezas) | H63: 20 | I63: 800 | M63: 20 | N63: 800
A64: Aguascalientes | B64: Calvillo | C64: Marzo | D64: Equipamiento e Infraestructura de los Elementos Policiales y las Instituciones de Seguridad Pública | E64: Equipamiento de las Instituciones de Seguridad Pública. | G64: Guantes de nitrilo (paquete con 50 pares) | H64: 10 | I64: 2000 | M64: 10 | N64: 2000
A65: Aguascalientes | B65: Calvillo | C65: Marzo | D65: Equipamiento e Infraestructura de los Elementos Policiales y las Instituciones de Seguridad Pública | E65: Equipamiento de las Instituciones de Seguridad Pública. | G65: Bolsa de papel con ventana transparente | H65: 10 | I65: 5003 | M65: 10 | N65: 5003
A66: Aguascalientes | B66: Calvillo | C66: Marzo | D66: Equipamiento e Infraestructura de los Elementos Policiales y las Instituciones de Seguridad Pública | E66: Equipamiento de las Instituciones de Seguridad Pública. | G66: Casco balístico mínimo nivel III-A | H66: 8 | I66: 72000 | M66: 8 | N66: 72000
A67: Aguascalientes | B67: Calvillo | C67: Marzo | D67: Equipamiento e Infraestructura de los Elementos Policiales y las Instituciones de Seguridad Pública | E67: Equipamiento de las Instituciones de Seguridad Pública. | G67: Pantalón | H67: 180 | I67: 324000 | M67: 180 | N67: 324000
A68: Aguascalientes | B68: Calvillo | C68: Marzo | D68: Equipamiento e Infraestructura de los Elementos Policiales y las Instituciones de Seguridad Pública | E68: Equipamiento de las Instituciones de Seguridad Pública. | G68: Camisola y/o camisa | H68: 180 | I68: 322200 | M68: 180 | N68: 322200
A69: Aguascalientes | B69: Calvillo | C69: Marzo | D69: Equipamiento e Infraestructura de los Elementos Policiales y las Instituciones de Seguridad Pública | E69: Equipamiento de las Instituciones de Seguridad Pública. | G69: Zapato tipo choclo | H69: 78 | I69: 109590 | M69: 78 | N69: 109590
A70: Aguascalientes | B70: Calvillo | C70: Marzo | D70: Equipamiento e Infraestructura de los Elementos Policiales y las Instituciones de Seguridad Pública | E70: Equipamiento de las Instituciones de Seguridad Pública. | G70: Botas | H70: 14 | I70: 35000 | M70: 14 | N70: 35000
A71: Aguascalientes | B71: Calvillo | C71: Marzo | D71: Equipamiento e Infraestructura de los Elementos Policiales y las Instituciones de Seguridad Pública | E71: Equipamiento de las Instituciones de Seguridad Pública. | G71: Gorra tipo beisbolera | H71: 180 | I71: 62280 | M71: 180 | N71: 62280
A72: Aguascalientes | B72: Calvillo | C72: Marzo | D72: Equipamiento e Infraestructura de los Elementos Policiales y las Instituciones de Seguridad Pública | E72: Equipamiento de las Instituciones de Seguridad Pública. | G72: Google táctico | H72: 10 | I72: 16510 | M72: 10 | N72: 16510
A73: Aguascalientes | B73: Calvillo | C73: Marzo | D73: Equipamiento e Infraestructura de los Elementos Policiales y las Instituciones de Seguridad Pública | E73: Equipamiento de las Instituciones de Seguridad Pública. | G73: Guantes tácticos | H73: 20 | I73: 21580 | M73: 20 | N73: 21580
A74: Aguascalientes | B74: Calvillo | C74: Marzo | D74: Equipamiento e Infraestructura de los Elementos Policiales y las Instituciones de Seguridad Pública | E74: Equipamiento de las Instituciones de Seguridad Pública. | G74: Pistola tipo gotcha (arma marcadora) | H74: 10 | I74: 80040 | M74: 10 | N74: 80040
A75: Aguascalientes | B75: Calvillo | C75: Marzo | D75: Equipamiento e Infraestructura de los Elementos Policiales y las Instituciones de Seguridad Pública | E75: Equipamiento de las Instituciones de Seguridad Pública. | G75: Cargador de arma larga | H75: 80 | I75: 80000 | M75: 80 | N75: 80000
A76: Aguascalientes | B76: Calvillo | C76: Marzo | D76: Equipamiento e Infraestructura de los Elementos Policiales y las Instituciones de Seguridad Pública | E76: Infraestructura de las Instituciones de Seguridad Pública. | G76: Mejoramiento y/o ampliación | H76: 1 | I76: 1395600 | M76: =IF(AND(H76="", K76=""), "", (H76+K76)) -> 1 | N76: =IF(AND(I76="", L76=""), "", (I76+L76)) -> 1395600 | U76: =IF(AND(O76="",Q76="",S76=""),"",(O76+Q76+S76)) ->  | V76: =IF(AND(P76="", R76="", T76=""), "", (P76+R76+T76)) ->  | W76: =IFERROR(N76-V76, "") -> 
A77: Aguascalientes | B77: Calvillo | C77: Marzo | D77: Equipamiento e Infraestructura de los Elementos Policiales y las Instituciones de Seguridad Pública | E77: Equipamiento de las Instituciones de Seguridad Pública. | G77: Pick Up doble cabina equipada como patrulla con balizamiento (reacción) | H77: 2 | I77: 1700000 | M77: 2 | N77: 1700000
A78: Aguascalientes | B78: Calvillo | C78: Marzo | D78: Profesionalización, Certificación y Capacitación de los elementos policiales y las Instituciones de Seguridad Pública. | E78: Profesionalización y Capacitación de los Elementos Policiales de Seguridad Pública. | G78: Formación Continua (Derechos Humanos) (10% estado de fuerza operativo) | H78: 8 | I78: 32000 | M78: 8 | N78: 32000
A79: Aguascalientes | B79: Calvillo | C79: Marzo | D79: Profesionalización, Certificación y Capacitación de los elementos policiales y las Instituciones de Seguridad Pública. | E79: Profesionalización y Capacitación de los Elementos Policiales de Seguridad Pública. | G79: Formación Continua (Cadena de custodia) (10% del estado de fuerza operativo) | H79: 8 | I79: 32000 | M79: 8 | N79: 32000
A80: Aguascalientes | B80: Calvillo | C80: Marzo | D80: Profesionalización, Certificación y Capacitación de los elementos policiales y las Instituciones de Seguridad Pública. | E80: Profesionalización y Capacitación de los Elementos Policiales de Seguridad Pública. | G80: Formación Continua (Justicia Cívica) (10% del estado de fuerza operativo) | H80: 8 | I80: 32000 | M80: 8 | N80: 32000
A81: Aguascalientes | B81: Calvillo | C81: Marzo | D81: Profesionalización, Certificación y Capacitación de los elementos policiales y las Instituciones de Seguridad Pública. | E81: Profesionalización y Capacitación de los Elementos Policiales de Seguridad Pública. | G81: Formación Continua (CBFP) | H81: 7 | I81: 28000 | M81: 7 | N81: 28000
A82: Aguascalientes | B82: Calvillo | C82: Marzo | D82: Profesionalización, Certificación y Capacitación de los elementos policiales y las Instituciones de Seguridad Pública. | E82: Profesionalización y Capacitación de los Elementos Policiales de Seguridad Pública. | G82: Formación Continua Hechos de tránsito terrestre | H82: 7 | I82: 28000 | M82: 7 | N82: 28000
A83: Aguascalientes | B83: Jesús María | C83: Marzo | D83: Prevención Social de la Violencia y la Delincuencia con Participación Ciudadana | E83: Prevención Social de la Violencia y la Delincuencia con Participación Ciudadana. | F83: Prevención de Violencia Escolar | G83: Proyecto | H83: 1 | I83: 500000 | M83: 1 | N83: 500000
A84: Aguascalientes | B84: Jesús María | C84: Marzo | D84: Prevención Social de la Violencia y la Delincuencia con Participación Ciudadana | E84: Prevención Social de la Violencia y la Delincuencia con Participación Ciudadana. | F84: Prevención de Violencia Escolar | G84: Seguimiento y Evaluación | H84: 1 | I84: 50000 | M84: 1 | N84: 50000
A85: Aguascalientes | B85: Jesús María | C85: Marzo | D85: Prevención Social de la Violencia y la Delincuencia con Participación Ciudadana | E85: Prevención Social de la Violencia y la Delincuencia con Participación Ciudadana. | F85: Prevención de Violencia Familiar y de Genero | G85: Proyecto | H85: 1 | I85: 500000 | M85: 1 | N85: 500000
A86: Aguascalientes | B86: Jesús María | C86: Marzo | D86: Prevención Social de la Violencia y la Delincuencia con Participación Ciudadana | E86: Prevención Social de la Violencia y la Delincuencia con Participación Ciudadana. | F86: Prevención de Violencia Familiar y de Genero | G86: Seguimiento y Evaluación | H86: 1 | I86: 50000 | M86: 1 | N86: 50000
A87: Aguascalientes | B87: Jesús María | C87: Marzo | D87: Prevención Social de la Violencia y la Delincuencia con Participación Ciudadana | E87: Prevención Social de la Violencia y la Delincuencia con Participación Ciudadana. | F87: Jóvenes en Prevención | G87: Proyecto | H87: 1 | I87: 500000 | M87: 1 | N87: 500000
A88: Aguascalientes | B88: Jesús María | C88: Marzo | D88: Prevención Social de la Violencia y la Delincuencia con Participación Ciudadana | E88: Prevención Social de la Violencia y la Delincuencia con Participación Ciudadana. | F88: Jóvenes en Prevención | G88: Seguimiento y Evaluación | H88: 1 | I88: 50000 | M88: 1 | N88: 50000
A89: Aguascalientes | B89: Jesús María | C89: Marzo | D89: Profesionalización, Certificación y Capacitación de los elementos policiales y las Instituciones de Seguridad Pública. | E89: Fortalecimiento de las Capacidades de Evaluación en Control de Confianza. | G89: Evaluaciones de personal en activo (Permanencias, Ascensos y Promociones). | H89: 55 | I89: 405240 | M89: 55 | N89: 405240
A90: Aguascalientes | B90: Jesús María | C90: Marzo | D90: Profesionalización, Certificación y Capacitación de los elementos policiales y las Instituciones de Seguridad Pública. | E90: Fortalecimiento de las Capacidades de Evaluación en Control de Confianza. | G90: Aplicación de evaluaciones a personal de nuevo ingreso | H90: 20 | I90: 147360 | M90: 20 | N90: 147360
A91: Aguascalientes | B91: Jesús María | C91: Marzo | D91: Profesionalización, Certificación y Capacitación de los elementos policiales y las Instituciones de Seguridad Pública. | E91: Profesionalización y Capacitación de los Elementos Policiales de Seguridad Pública. | G91: Formación Continua (Derechos Humanos) (10% estado de fuerza operativo) | H91: 14 | I91: 54600 | M91: 14 | N91: 54600
A92: Aguascalientes | B92: Jesús María | C92: Marzo | D92: Profesionalización, Certificación y Capacitación de los elementos policiales y las Instituciones de Seguridad Pública. | E92: Profesionalización y Capacitación de los Elementos Policiales de Seguridad Pública. | G92: Formación Continua (Justicia Cívica) (10% del estado de fuerza operativo) | H92: 14 | I92: 55720 | M92: 14 | N92: 55720
A93: Aguascalientes | B93: Jesús María | C93: Marzo | D93: Profesionalización, Certificación y Capacitación de los elementos policiales y las Instituciones de Seguridad Pública. | E93: Profesionalización y Capacitación de los Elementos Policiales de Seguridad Pública. | G93: Formación Continua (Cadena de custodia) (10% del estado de fuerza operativo) | H93: 14 | I93: 54600 | M93: 14 | N93: 54600
A94: Aguascalientes | B94: Jesús María | C94: Marzo | D94: Profesionalización, Certificación y Capacitación de los elementos policiales y las Instituciones de Seguridad Pública. | E94: Profesionalización y Capacitación de los Elementos Policiales de Seguridad Pública. | G94: Formación Continua (Formación Mandos) (25 % estado de fuerza Mandos) | H94: 4 | I94: 42000 | M94: 4 | N94: 42000
A95: Aguascalientes | B95: Jesús María | C95: Marzo | D95: Profesionalización, Certificación y Capacitación de los elementos policiales y las Instituciones de Seguridad Pública. | E95: Profesionalización y Capacitación de los Elementos Policiales de Seguridad Pública. | G95: Evaluación de Competencias Básicas de la Función para Policías Municipales | H95: 12 | I95: 13200 | M95: 12 | N95: 13200
A96: Aguascalientes | B96: Jesús María | C96: Marzo | D96: Profesionalización, Certificación y Capacitación de los elementos policiales y las Instituciones de Seguridad Pública. | E96: Profesionalización y Capacitación de los Elementos Policiales de Seguridad Pública. | G96: Formación Inicial (Aspirantes) | H96: 10 | I96: 450000 | M96: 10 | N96: 450000
A97: Aguascalientes | B97: Jesús María | C97: Marzo | D97: Profesionalización, Certificación y Capacitación de los elementos policiales y las Instituciones de Seguridad Pública. | E97: Profesionalización y Capacitación de los Elementos Policiales de Seguridad Pública. | G97: Becas para aspirantes a Policía Municipal | H97: 10 | I97: 240000 | M97: 10 | N97: 240000
A98: Aguascalientes | B98: Jesús María | C98: Marzo | D98: Profesionalización, Certificación y Capacitación de los elementos policiales y las Instituciones de Seguridad Pública. | E98: Profesionalización y Capacitación de los Elementos Policiales de Seguridad Pública. | G98: Formación Inicial (Activos) | H98: 2 | I98: 27200 | M98: 2 | N98: 27200
A99: Aguascalientes | B99: Jesús María | C99: Marzo | D99: Equipamiento e Infraestructura de los Elementos Policiales y las Instituciones de Seguridad Pública | E99: Equipamiento de las Instituciones de Seguridad Pública. | G99: Camisola y/o camisa | H99: 170 | I99: 251600 | M99: 170 | N99: 251600
A100: Aguascalientes | B100: Jesús María | C100: Marzo | D100: Equipamiento e Infraestructura de los Elementos Policiales y las Instituciones de Seguridad Pública | E100: Equipamiento de las Instituciones de Seguridad Pública. | G100: Pantalón | H100: 170 | I100: 215900 | M100: 170 | N100: 215900
A101: Aguascalientes | B101: Jesús María | C101: Marzo | D101: Equipamiento e Infraestructura de los Elementos Policiales y las Instituciones de Seguridad Pública | E101: Equipamiento de las Instituciones de Seguridad Pública. | G101: Camisola y/o camisa | H101: 170 | I101: 238000 | M101: 170 | N101: 238000
A102: Aguascalientes | B102: Jesús María | C102: Marzo | D102: Equipamiento e Infraestructura de los Elementos Policiales y las Instituciones de Seguridad Pública | E102: Equipamiento de las Instituciones de Seguridad Pública. | G102: Pantalón | H102: 170 | I102: 226100 | M102: 170 | N102: 226100
A103: Aguascalientes | B103: Jesús María | C103: Marzo | D103: Equipamiento e Infraestructura de los Elementos Policiales y las Instituciones de Seguridad Pública | E103: Equipamiento de las Instituciones de Seguridad Pública. | G103: Gorra tipo beisbolera | H103: 170 | I103: 51000 | M103: 170 | N103: 51000
A104: Aguascalientes | B104: Jesús María | C104: Marzo | D104: Equipamiento e Infraestructura de los Elementos Policiales y las Instituciones de Seguridad Pública | E104: Equipamiento de las Instituciones de Seguridad Pública. | G104: Chamarra | H104: 170 | I104: 365500 | M104: 170 | N104: 365500
A105: Aguascalientes | B105: Jesús María | C105: Marzo | D105: Equipamiento e Infraestructura de los Elementos Policiales y las Instituciones de Seguridad Pública | E105: Equipamiento de las Instituciones de Seguridad Pública. | G105: Cinturón táctico | H105: 170 | I105: 68000 | M105: 170 | N105: 68000
A106: Aguascalientes | B106: Jesús María | C106: Marzo | D106: Equipamiento e Infraestructura de los Elementos Policiales y las Instituciones de Seguridad Pública | E106: Equipamiento de las Instituciones de Seguridad Pública. | G106: Zapato tipo choclo | H106: 170 | I106: 226100 | M106: 170 | N106: 226100
A107: Aguascalientes | B107: Jesús María | C107: Marzo | D107: Equipamiento e Infraestructura de los Elementos Policiales y las Instituciones de Seguridad Pública | E107: Equipamiento de las Instituciones de Seguridad Pública. | G107: Botas | H107: 170 | I107: 425000 | M107: 170 | N107: 425000
A108: Aguascalientes | B108: Jesús María | C108: Marzo | D108: Equipamiento e Infraestructura de los Elementos Policiales y las Instituciones de Seguridad Pública | E108: Equipamiento de las Instituciones de Seguridad Pública. | G108: Arma larga | H108: 10 | I108: 420000 | M108: 10 | N108: 420000
A109: Aguascalientes | B109: Jesús María | C109: Marzo | D109: Equipamiento e Infraestructura de los Elementos Policiales y las Instituciones de Seguridad Pública | E109: Equipamiento de las Instituciones de Seguridad Pública. | G109: Arma corta | H109: 20 | I109: 270000 | M109: 20 | N109: 270000
A110: Aguascalientes | B110: Jesús María | C110: Marzo | D110: Equipamiento e Infraestructura de los Elementos Policiales y las Instituciones de Seguridad Pública | E110: Equipamiento de las Instituciones de Seguridad Pública. | G110: Municiones para arma corta | H110: 5000 | I110: 50000 | M110: 5000 | N110: 50000
A111: Aguascalientes | B111: Jesús María | C111: Marzo | D111: Equipamiento e Infraestructura de los Elementos Policiales y las Instituciones de Seguridad Pública | E111: Equipamiento de las Instituciones de Seguridad Pública. | G111: Municiones para arma larga | H111: 5000 | I111: 75000 | M111: 5000 | N111: 75000
A112: Aguascalientes | B112: Jesús María | C112: Marzo | D112: Sistema Nacional de Información | E112: Red Nacional de Radiocomunicación. | G112: Terminal digital portátil (radio) | H112: 10 | I112: 386700 | M112: 10 | N112: 386700
A113: Aguascalientes | B113: Jesús María | C113: Marzo | D113: Sistema Nacional de Información | E113: Red Nacional de Radiocomunicación. | G113: Terminal digital móvil (radio) | H113: 1 | I113: 100000 | M113: 1 | N113: 100000
A114: Aguascalientes | B114: Jesús María | C114: Marzo | D114: Profesionalización, Certificación y Capacitación de los elementos policiales y las Instituciones de Seguridad Pública. | E114: Profesionalización y Capacitación de los Elementos Policiales de Seguridad Pública. | G114: Difusión Externa (Convocatoria para Policía Municipal) | H114: 1 | I114: 0 | M114: 1 | N114: 0
A115: Aguascalientes | B115: Jesús María | C115: Marzo | D115: Profesionalización, Certificación y Capacitación de los elementos policiales y las Instituciones de Seguridad Pública. | E115: Profesionalización y Capacitación de los Elementos Policiales de Seguridad Pública. | G115: Actas de Instauración y Sesiones de la Comisión del Servicio Profesional de Carrera y de la Comisión de Honor y Justicia | H115: 1 | I115: 0 | M115: 1 | N115: 0
A116: Aguascalientes | B116: Jesús María | C116: Marzo | D116: Impulso al Modelo Nacional de Policía y Justicia Cívica. | E116: Dignificación Policial (Coparticipación) | G116: Gastos de Operación | H116: 1 | I116: 60000 | M116: 1 | N116: 60000
A117: Aguascalientes | B117: Jesús María | C117: Marzo | D117: Impulso al Modelo Nacional de Policía y Justicia Cívica. | E117: Dignificación Policial (Coparticipación) | G117: Reestructuración y Homologación Salarial | H117: 1 | I117: 1428510.8 | M117: 1 | N117: 1428510.8
A118: Aguascalientes | B118: Jesús María | C118: Marzo | D118: Equipamiento e Infraestructura de los Elementos Policiales y las Instituciones de Seguridad Pública | E118: Equipamiento de las Instituciones de Seguridad Pública. | G118: Pick Up doble cabina equipada como patrulla con balizamiento (reacción) | H118: 1 | I118: 869834 | M118: 1 | N118: 869834
A119: Aguascalientes | B119: Jesús María | C119: Marzo | D119: Profesionalización, Certificación y Capacitación de los elementos policiales y las Instituciones de Seguridad Pública. | E119: Profesionalización y Capacitación de los Elementos Policiales de Seguridad Pública. | G119: Evaluación del desempeño | H119: 12 | I119: 0 | M119: 12 | N119: 0
A120: Aguascalientes | B120: Jesús María | C120: Marzo | D120: Profesionalización, Certificación y Capacitación de los elementos policiales y las Instituciones de Seguridad Pública. | E120: Profesionalización y Capacitación de los Elementos Policiales de Seguridad Pública. | G120: Formación Continua (CBFP) | H120: 12 | I120: 48000 | M120: 12 | N120: 48000
A121: Aguascalientes | B121: Jesús María | C121: Marzo | D121: Profesionalización, Certificación y Capacitación de los elementos policiales y las Instituciones de Seguridad Pública. | E121: Profesionalización y Capacitación de los Elementos Policiales de Seguridad Pública. | G121: Difusión interna de la Convocatoria para promoción para Policía Municipal | H121: 1 | I121: 0 | M121: 1 | N121: 0
A122: Aguascalientes | B122: Jesús María | C122: Marzo | D122: Sistema Nacional de Información | E122: Sistema Nacional de Información, bases de datos del SNSP. | G122: Computadora de escritorio | H122: 1 | I122: 14000 | M122: 1 | N122: 14000
A123: Aguascalientes | B123: Jesús María | C123: Marzo | D123: Sistema Nacional de Información | E123: Sistema Nacional de Información, bases de datos del SNSP. | G123: Unidad de protección y respaldo de energía (UPS) | H123: 1 | I123: 1900 | M123: 1 | N123: 1900
A124: Aguascalientes | B124: San Francisco de los Romo | C124: Marzo | D124: Profesionalización, Certificación y Capacitación de los elementos policiales y las Instituciones de Seguridad Pública. | E124: Fortalecimiento de las Capacidades de Evaluación en Control de Confianza. | G124: Evaluaciones de personal en activo (Permanencias, Ascensos y Promociones). | H124: 19 | I124: 139992 | M124: 19 | N124: 139992
A125: Aguascalientes | B125: San Francisco de los Romo | C125: Marzo | D125: Profesionalización, Certificación y Capacitación de los elementos policiales y las Instituciones de Seguridad Pública. | E125: Fortalecimiento de las Capacidades de Evaluación en Control de Confianza. | G125: Aplicación de evaluaciones a personal de nuevo ingreso | H125: 30 | I125: 221040 | M125: 30 | N125: 221040
A126: Aguascalientes | B126: San Francisco de los Romo | C126: Marzo | D126: Profesionalización, Certificación y Capacitación de los elementos policiales y las Instituciones de Seguridad Pública. | E126: Profesionalización y Capacitación de los Elementos Policiales de Seguridad Pública. | G126: Evaluación de Competencias Básicas de la Función para Policías Municipales | H126: 16 | I126: 16000 | M126: 16 | N126: 16000
A127: Aguascalientes | B127: San Francisco de los Romo | C127: Marzo | D127: Profesionalización, Certificación y Capacitación de los elementos policiales y las Instituciones de Seguridad Pública. | E127: Profesionalización y Capacitación de los Elementos Policiales de Seguridad Pública. | G127: Formación Continua (Derechos Humanos) (10% estado de fuerza operativo) | H127: 10 | I127: 36000 | M127: 10 | N127: 36000
A128: Aguascalientes | B128: San Francisco de los Romo | C128: Marzo | D128: Profesionalización, Certificación y Capacitación de los elementos policiales y las Instituciones de Seguridad Pública. | E128: Profesionalización y Capacitación de los Elementos Policiales de Seguridad Pública. | G128: Formación Continua (Cadena de custodia) (10% del estado de fuerza operativo) | H128: 10 | I128: 36000 | M128: 10 | N128: 36000
A129: Aguascalientes | B129: San Francisco de los Romo | C129: Marzo | D129: Profesionalización, Certificación y Capacitación de los elementos policiales y las Instituciones de Seguridad Pública. | E129: Profesionalización y Capacitación de los Elementos Policiales de Seguridad Pública. | G129: Formación Continua (CBFP) | H129: 16 | I129: 48000 | M129: 16 | N129: 48000
A130: Aguascalientes | B130: San Francisco de los Romo | C130: Marzo | D130: Profesionalización, Certificación y Capacitación de los elementos policiales y las Instituciones de Seguridad Pública. | E130: Profesionalización y Capacitación de los Elementos Policiales de Seguridad Pública. | G130: Formación Continua (Formación Mandos) (25 % estado de fuerza Mandos) | H130: 1 | I130: 13000 | M130: 1 | N130: 13000
A131: Aguascalientes | B131: San Francisco de los Romo | C131: Marzo | D131: Profesionalización, Certificación y Capacitación de los elementos policiales y las Instituciones de Seguridad Pública. | E131: Profesionalización y Capacitación de los Elementos Policiales de Seguridad Pública. | G131: Formación Continua (Justicia Cívica) (10% del estado de fuerza operativo) | H131: 10 | I131: 50000 | M131: 10 | N131: 50000
A132: Aguascalientes | B132: San Francisco de los Romo | C132: Marzo | D132: Sistema Nacional de Información | E132: Red Nacional de Radiocomunicación. | G132: Terminal digital móvil (radio) | H132: 2 | I132: 180000 | M132: 2 | N132: 180000
A133: Aguascalientes | B133: San Francisco de los Romo | C133: Marzo | D133: Equipamiento e Infraestructura de los Elementos Policiales y las Instituciones de Seguridad Pública | E133: Equipamiento de las Instituciones de Seguridad Pública. | G133: Chaleco balístico mínimo nivel III-A con dos placas balísticas nivel IV | H133: 15 | I133: 270000 | M133: 15 | N133: 270000
A134: Aguascalientes | B134: San Francisco de los Romo | C134: Marzo | D134: Equipamiento e Infraestructura de los Elementos Policiales y las Instituciones de Seguridad Pública | E134: Equipamiento de las Instituciones de Seguridad Pública. | G134: Arma corta | H134: 15 | I134: 240000 | M134: 15 | N134: 240000
A135: Aguascalientes | B135: San Francisco de los Romo | C135: Marzo | D135: Equipamiento e Infraestructura de los Elementos Policiales y las Instituciones de Seguridad Pública | E135: Equipamiento de las Instituciones de Seguridad Pública. | G135: Arma larga | H135: 30 | I135: 1560000 | M135: 30 | N135: 1560000
A136: Aguascalientes | B136: San Francisco de los Romo | C136: Marzo | D136: Prevención Social de la Violencia y la Delincuencia con Participación Ciudadana | E136: Prevención Social de la Violencia y la Delincuencia con Participación Ciudadana. | F136: Jóvenes en Prevención | G136: Proyecto | H136: 1 | I136: 495000 | M136: 1 | N136: 495000
A137: Aguascalientes | B137: San Francisco de los Romo | C137: Marzo | D137: Prevención Social de la Violencia y la Delincuencia con Participación Ciudadana | E137: Prevención Social de la Violencia y la Delincuencia con Participación Ciudadana. | F137: Jóvenes en Prevención | G137: Seguimiento y Evaluación | H137: 1 | I137: 55000 | M137: 1 | N137: 55000
A138: Aguascalientes | B138: San Francisco de los Romo | C138: Marzo | D138: Impulso al Modelo Nacional de Policía y Justicia Cívica. | E138: Dignificación Policial (Coparticipación) | G138: Reestructuración y Homologación Salarial | H138: 1 | I138: 570000 | M138: 1 | N138: 570000
A139: Aguascalientes | B139: San Francisco de los Romo | C139: Marzo | D139: Impulso al Modelo Nacional de Policía y Justicia Cívica. | E139: Dignificación Policial (Coparticipación) | G139: Programa de Mejoras de las Condiciones Laborales | H139: 1 | I139: 570000 | M139: 1 | N139: 570000
A140: Aguascalientes | B140: San Francisco de los Romo | C140: Marzo | D140: Impulso al Modelo Nacional de Policía y Justicia Cívica. | E140: Dignificación Policial (Coparticipación) | G140: Gastos de Operación | H140: 1 | I140: 60000 | M140: =IF(AND(H140="", K140=""), "", (H140+K140)) -> 1 | N140: =IF(AND(I140="", L140=""), "", (I140+L140)) -> 60000 | U140: =IF(AND(O140="",Q140="",S140=""),"",(O140+Q140+S140)) ->  | V140: =IF(AND(P140="", R140="", T140=""), "", (P140+R140+T140)) ->  | W140: =IFERROR(N140-V140, "") -> 
A141: Aguascalientes | B141: San Francisco de los Romo | C141: Marzo | D141: Equipamiento e Infraestructura de los Elementos Policiales y las Instituciones de Seguridad Pública | E141: Equipamiento de las Instituciones de Seguridad Pública. | G141: Pick Up doble cabina equipada como patrulla con balizamiento (reacción) | H141: 2 | I141: 1513468 | M141: 2 | N141: 1513468
A142: Aguascalientes | B142: San Francisco de los Romo | C142: Marzo | D142: Sistema Nacional de Información | E142: Red Nacional de Radiocomunicación. | G142: Terminal digital portátil (radio) | H142: 12 | I142: 432000 | M142: 12 | N142: 432000
A143: Aguascalientes | B143: San Francisco de los Romo | C143: Marzo | D143: Sistema Nacional de Información | E143: Red Nacional de Radiocomunicación. | G143: Batería para terminal digital portátil (radio portátil) | H143: 13 | I143: 19500 | M143: 13 | N143: 19500
A144: Aguascalientes | B144: San Francisco de los Romo | C144: Marzo | D144: Profesionalización, Certificación y Capacitación de los elementos policiales y las Instituciones de Seguridad Pública. | E144: Profesionalización y Capacitación de los Elementos Policiales de Seguridad Pública. | G144: Difusión Externa (Convocatoria para Policía Municipal) | H144: 1 | I144: 0 | M144: 1 | N144: 0
A145: Aguascalientes | B145: San Francisco de los Romo | C145: Marzo | D145: Profesionalización, Certificación y Capacitación de los elementos policiales y las Instituciones de Seguridad Pública. | E145: Profesionalización y Capacitación de los Elementos Policiales de Seguridad Pública. | G145: Difusión interna de la Convocatoria para promoción para Policía Municipal | H145: 1 | I145: 0 | M145: 1 | N145: 0
A146: Aguascalientes | B146: San Francisco de los Romo | C146: Marzo | D146: Profesionalización, Certificación y Capacitación de los elementos policiales y las Instituciones de Seguridad Pública. | E146: Profesionalización y Capacitación de los Elementos Policiales de Seguridad Pública. | G146: Actas de Instauración y Sesiones de la Comisión del Servicio Profesional de Carrera y de la Comisión de Honor y Justicia | H146: 1 | I146: 0 | M146: 1 | N146: 0
A147: Aguascalientes | B147: San Francisco de los Romo | C147: Marzo | D147: Profesionalización, Certificación y Capacitación de los elementos policiales y las Instituciones de Seguridad Pública. | E147: Profesionalización y Capacitación de los Elementos Policiales de Seguridad Pública. | G147: Formación Inicial (Aspirantes) | H147: 15 | I147: 675000 | M147: 15 | N147: 675000
A148: Aguascalientes | B148: San Francisco de los Romo | C148: Marzo | D148: Profesionalización, Certificación y Capacitación de los elementos policiales y las Instituciones de Seguridad Pública. | E148: Profesionalización y Capacitación de los Elementos Policiales de Seguridad Pública. | G148: Evaluación del desempeño | H148: 16 | I148: 0 | M148: 16 | N148: 0
A149: Chihuahua | B149: Chihuahua | C149: Marzo | D149: Profesionalización, Certificación y Capacitación de los elementos policiales y las Instituciones de Seguridad Pública. | E149: Fortalecimiento de las Capacidades de Evaluación en Control de Confianza. | G149: Aplicación de evaluaciones a personal de nuevo ingreso | H149: 550 | I149: 4400000 | M149: =IF(AND(H149="", K149=""), "", (H149+K149)) -> 550 | N149: =IF(AND(I149="", L149=""), "", (I149+L149)) -> 4400000 | U149: =IF(AND(O149="",Q149="",S149=""),"",(O149+Q149+S149)) ->  | V149: =IF(AND(P149="", R149="", T149=""), "", (P149+R149+T149)) ->  | W149: =IFERROR(N149-V149, "") -> 
A150: Chihuahua | B150: Chihuahua | C150: Marzo | D150: Profesionalización, Certificación y Capacitación de los elementos policiales y las Instituciones de Seguridad Pública. | E150: Fortalecimiento de las Capacidades de Evaluación en Control de Confianza. | G150: Evaluaciones de personal en activo (Permanencias, Ascensos y Promociones). | H150: 250 | I150: 2000000 | M150: 250 | N150: 2000000
A151: Chihuahua | B151: Chihuahua | C151: Marzo | D151: Profesionalización, Certificación y Capacitación de los elementos policiales y las Instituciones de Seguridad Pública. | E151: Profesionalización y Capacitación de los Elementos Policiales de Seguridad Pública. | G151: Becas para aspirantes a Policía Municipal | H151: 150 | I151: 4050000 | M151: 150 | N151: 4050000
A152: Chihuahua | B152: Chihuahua | C152: Marzo | D152: Profesionalización, Certificación y Capacitación de los elementos policiales y las Instituciones de Seguridad Pública. | E152: Profesionalización y Capacitación de los Elementos Policiales de Seguridad Pública. | G152: Evaluación de aspirantes a Instructores Evaluadores de la Función Municipal | H152: 15 | I152: 0 | M152: 15 | N152: 0
A153: Chihuahua | B153: Chihuahua | C153: Marzo | D153: Profesionalización, Certificación y Capacitación de los elementos policiales y las Instituciones de Seguridad Pública. | E153: Profesionalización y Capacitación de los Elementos Policiales de Seguridad Pública. | G153: Evaluación del desempeño | H153: 800 | I153: 72000 | M153: 800 | N153: 72000
A154: Chihuahua | B154: Chihuahua | C154: Marzo | D154: Profesionalización, Certificación y Capacitación de los elementos policiales y las Instituciones de Seguridad Pública. | E154: Profesionalización y Capacitación de los Elementos Policiales de Seguridad Pública. | G154: Formación Continua | H154: 361 | I154: 0 | M154: 361 | N154: 0
A155: Chihuahua | B155: Chihuahua | C155: Marzo | D155: Profesionalización, Certificación y Capacitación de los elementos policiales y las Instituciones de Seguridad Pública. | E155: Profesionalización y Capacitación de los Elementos Policiales de Seguridad Pública. | G155: Formación Inicial (Aspirantes) | H155: 150 | I155: 0 | M155: 150 | N155: 0
A156: Chihuahua | B156: Chihuahua | C156: Marzo | D156: Profesionalización, Certificación y Capacitación de los elementos policiales y las Instituciones de Seguridad Pública. | E156: Profesionalización y Capacitación de los Elementos Policiales de Seguridad Pública. | G156: Formación Continua (CBFP) | H156: 600 | I156: 0 | M156: 600 | N156: 0
A157: Chihuahua | B157: Chihuahua | C157: Marzo | D157: Profesionalización, Certificación y Capacitación de los elementos policiales y las Instituciones de Seguridad Pública. | E157: Profesionalización y Capacitación de los Elementos Policiales de Seguridad Pública. | G157: Evaluación de Competencias Básicas de la Función para Policías Municipales | H157: 600 | I157: 0 | M157: =IF(AND(H157="", K157=""), "", (H157+K157)) -> 600 | N157: =IF(AND(I157="", L157=""), "", (I157+L157)) -> 0 | U157: =IF(AND(O157="",Q157="",S157=""),"",(O157+Q157+S157)) ->  | V157: =IF(AND(P157="", R157="", T157=""), "", (P157+R157+T157)) ->  | W157: =IFERROR(N157-V157, "") -> 
A158: Chihuahua | B158: Chihuahua | C158: Marzo | D158: Profesionalización, Certificación y Capacitación de los elementos policiales y las Instituciones de Seguridad Pública. | E158: Profesionalización y Capacitación de los Elementos Policiales de Seguridad Pública. | G158: Formación Inicial (Activos) | H158: 50 | I158: 0 | M158: 50 | N158: 0
A159: Chihuahua | B159: Chihuahua | C159: Marzo | D159: Equipamiento e Infraestructura de los Elementos Policiales y las Instituciones de Seguridad Pública | E159: Equipamiento de las Instituciones de Seguridad Pública. | G159: Camisola y/o camisa | H159: 2710 | I159: 4526784 | M159: 2710 | N159: 4526784
A160: Chihuahua | B160: Chihuahua | C160: Marzo | D160: Equipamiento e Infraestructura de los Elementos Policiales y las Instituciones de Seguridad Pública | E160: Equipamiento de las Instituciones de Seguridad Pública. | G160: Pantalón | H160: 2710 | I160: 4268250 | M160: 2710 | N160: 4268250
A161: Chihuahua | B161: Chihuahua | C161: Marzo | D161: Equipamiento e Infraestructura de los Elementos Policiales y las Instituciones de Seguridad Pública | E161: Equipamiento de las Instituciones de Seguridad Pública. | G161: Botas | H161: 2710 | I161: 7475264 | M161: 2710 | N161: 7475264
A162: Chihuahua | B162: Chihuahua | C162: Marzo | D162: Equipamiento e Infraestructura de los Elementos Policiales y las Instituciones de Seguridad Pública | E162: Equipamiento de las Instituciones de Seguridad Pública. | G162: Fornitura | H162: 150 | I162: 225000 | M162: 150 | N162: 225000
A163: Chihuahua | B163: Chihuahua | C163: Marzo | D163: Equipamiento e Infraestructura de los Elementos Policiales y las Instituciones de Seguridad Pública | E163: Equipamiento de las Instituciones de Seguridad Pública. | G163: Insignias y divisas | H163: 150 | I163: 270000 | M163: 150 | N163: 270000
A164: Chihuahua | B164: Chihuahua | C164: Marzo | D164: Equipamiento e Infraestructura de los Elementos Policiales y las Instituciones de Seguridad Pública | E164: Equipamiento de las Instituciones de Seguridad Pública. | G164: Pantalón | H164: 150 | I164: 201000 | M164: 150 | N164: 201000
A165: Chihuahua | B165: Chihuahua | C165: Marzo | D165: Equipamiento e Infraestructura de los Elementos Policiales y las Instituciones de Seguridad Pública | E165: Equipamiento de las Instituciones de Seguridad Pública. | G165: Cinturón táctico | H165: 150 | I165: 59250 | M165: 150 | N165: 59250
A166: Chihuahua | B166: Chihuahua | C166: Marzo | D166: Equipamiento e Infraestructura de los Elementos Policiales y las Instituciones de Seguridad Pública | E166: Equipamiento de las Instituciones de Seguridad Pública. | G166: Botas | H166: 150 | I166: 227100 | M166: 150 | N166: 227100
A167: Chihuahua | B167: Chihuahua | C167: Marzo | D167: Equipamiento e Infraestructura de los Elementos Policiales y las Instituciones de Seguridad Pública | E167: Equipamiento de las Instituciones de Seguridad Pública. | G167: Gorra tipo beisbolera | H167: 150 | I167: 48750 | M167: 150 | N167: 48750
A168: Chihuahua | B168: Chihuahua | C168: Marzo | D168: Equipamiento e Infraestructura de los Elementos Policiales y las Instituciones de Seguridad Pública | E168: Equipamiento de las Instituciones de Seguridad Pública. | G168: Playera (especificar) | H168: 300 | I168: 101970 | M168: 300 | N168: 101970
A169: Chihuahua | B169: Chihuahua | C169: Marzo | D169: Equipamiento e Infraestructura de los Elementos Policiales y las Instituciones de Seguridad Pública | E169: Equipamiento de las Instituciones de Seguridad Pública. | G169: Candado de mano metálico | H169: 150 | I169: 148800 | M169: 150 | N169: 148800
A170: Chihuahua | B170: Chihuahua | C170: Marzo | D170: Equipamiento e Infraestructura de los Elementos Policiales y las Instituciones de Seguridad Pública | E170: Equipamiento de las Instituciones de Seguridad Pública. | G170: Municiones para arma corta | H170: 100000 | I170: 646000 | M170: 100000 | N170: 646000
A171: Chihuahua | B171: Chihuahua | C171: Marzo | D171: Equipamiento e Infraestructura de los Elementos Policiales y las Instituciones de Seguridad Pública | E171: Equipamiento de las Instituciones de Seguridad Pública. | G171: Municiones para arma larga | H171: 100000 | I171: 791000 | M171: 100000 | N171: 791000
A172: Chihuahua | B172: Chihuahua | C172: Marzo | D172: Sistema Nacional de Información | E172: Sistema Nacional de Información, bases de datos del SNSP. | G172: Tableta electrónica | H172: 112 | I172: 1848000 | M172: 112 | N172: 1848000
A173: Chihuahua | B173: Chihuahua | C173: Marzo | D173: Sistema Nacional de Información | E173: Sistema Nacional de Información, bases de datos del SNSP. | G173: Escáner | H173: 2 | I173: 372045 | M173: 2 | N173: 372045
A174: Chihuahua | B174: Chihuahua | C174: Marzo | D174: Profesionalización, Certificación y Capacitación de los elementos policiales y las Instituciones de Seguridad Pública. | E174: Profesionalización y Capacitación de los Elementos Policiales de Seguridad Pública. | G174: Difusión Externa (Convocatoria para Policía Municipal) | H174: 1 | I174: 0 | M174: 1 | N174: 0
A175: Chihuahua | B175: Chihuahua | C175: Marzo | D175: Profesionalización, Certificación y Capacitación de los elementos policiales y las Instituciones de Seguridad Pública. | E175: Profesionalización y Capacitación de los Elementos Policiales de Seguridad Pública. | G175: Difusión interna de la Convocatoria para promoción para Policía Municipal | H175: 1 | I175: 0 | M175: 1 | N175: 0
A176: Chihuahua | B176: Chihuahua | C176: Marzo | D176: Profesionalización, Certificación y Capacitación de los elementos policiales y las Instituciones de Seguridad Pública. | E176: Profesionalización y Capacitación de los Elementos Policiales de Seguridad Pública. | G176: Actas de Instauración y Sesiones de la Comisión del Servicio Profesional de Carrera y de la Comisión de Honor y Justicia | H176: 1 | I176: 0 | M176: 1 | N176: 0
A177: Chihuahua | B177: Chihuahua | C177: Marzo | D177: Profesionalización, Certificación y Capacitación de los elementos policiales y las Instituciones de Seguridad Pública. | E177: Profesionalización y Capacitación de los Elementos Policiales de Seguridad Pública. | G177: Formato de Migracion de elementos al Servicio Profesional de Carrera | H177: 1 | I177: 0 | M177: 1 | N177: 0
A178: Chihuahua | B178: Chihuahua | C178: Marzo | D178: Profesionalización, Certificación y Capacitación de los elementos policiales y las Instituciones de Seguridad Pública. | E178: Profesionalización y Capacitación de los Elementos Policiales de Seguridad Pública. | G178: Formación Continua (Formación Mandos) (25 % estado de fuerza Mandos) | H178: 50 | I178: 650000 | M178: 50 | N178: 650000
A179: Chihuahua | B179: Chihuahua | C179: Marzo | D179: Profesionalización, Certificación y Capacitación de los elementos policiales y las Instituciones de Seguridad Pública. | E179: Profesionalización y Capacitación de los Elementos Policiales de Seguridad Pública. | G179: Formación Continua (Derechos Humanos) (10% estado de fuerza operativo) | H179: 135 | I179: 0 | M179: 135 | N179: 0
A180: Chihuahua | B180: Chihuahua | C180: Marzo | D180: Profesionalización, Certificación y Capacitación de los elementos policiales y las Instituciones de Seguridad Pública. | E180: Profesionalización y Capacitación de los Elementos Policiales de Seguridad Pública. | G180: Formación Continua (Cadena de custodia) (10% del estado de fuerza operativo) | H180: 135 | I180: 0 | M180: 135 | N180: 0
A181: Chihuahua | B181: Chihuahua | C181: Marzo | D181: Profesionalización, Certificación y Capacitación de los elementos policiales y las Instituciones de Seguridad Pública. | E181: Profesionalización y Capacitación de los Elementos Policiales de Seguridad Pública. | G181: Formación Continua (Justicia Cívica) (10% del estado de fuerza operativo) | H181: 135 | I181: 0 | M181: 135 | N181: 0
A182: Chihuahua | B182: Chihuahua | C182: Marzo | D182: Impulso al Modelo Nacional de Policía y Justicia Cívica. | E182: Dignificación Policial (Coparticipación) | G182: Reestructuración y Homologación Salarial | H182: 1 | I182: 647624.8 | M182: 1 | N182: 647624.8
A183: Chihuahua | B183: Chihuahua | C183: Marzo | D183: Impulso al Modelo Nacional de Policía y Justicia Cívica. | E183: Dignificación Policial (Coparticipación) | G183: Programa de Mejoras de las Condiciones Laborales | H183: 1 | I183: 5828617.8 | M183: 1 | N183: 5828617.8
A184: Chihuahua | B184: Cuauhtémoc | C184: Marzo | D184: Impulso al Modelo Nacional de Policía y Justicia Cívica. | E184: Dignificación Policial (Coparticipación) | G184: Reestructuración y Homologación Salarial | H184: 1 | I184: 1150000 | M184: 1 | N184: 1150000
A185: Chihuahua | B185: Cuauhtémoc | C185: Marzo | D185: Impulso al Modelo Nacional de Policía y Justicia Cívica. | E185: Dignificación Policial (Coparticipación) | G185: Programa de Mejoras de las Condiciones Laborales | H185: 1 | I185: 1150000 | M185: 1 | N185: 1150000
A186: Chihuahua | B186: Cuauhtémoc | C186: Marzo | D186: Impulso al Modelo Nacional de Policía y Justicia Cívica. | E186: Dignificación Policial (Coparticipación) | G186: Gastos de Operación | H186: 1 | I186: 44745 | M186: 1 | N186: 44745
A187: Chihuahua | B187: Cuauhtémoc | C187: Marzo | D187: Profesionalización, Certificación y Capacitación de los elementos policiales y las Instituciones de Seguridad Pública. | E187: Fortalecimiento de las Capacidades de Evaluación en Control de Confianza. | G187: Evaluaciones de personal en activo (Permanencias, Ascensos y Promociones). | H187: 25 | I187: 200000 | M187: 25 | N187: 200000
A188: Chihuahua | B188: Cuauhtémoc | C188: Marzo | D188: Profesionalización, Certificación y Capacitación de los elementos policiales y las Instituciones de Seguridad Pública. | E188: Fortalecimiento de las Capacidades de Evaluación en Control de Confianza. | G188: Aplicación de evaluaciones a personal de nuevo ingreso | H188: 80 | I188: 640000 | M188: 80 | N188: 640000
A189: Chihuahua | B189: Cuauhtémoc | C189: Marzo | D189: Equipamiento e Infraestructura de los Elementos Policiales y las Instituciones de Seguridad Pública | E189: Equipamiento de las Instituciones de Seguridad Pública. | G189: Municiones para arma corta | H189: 7000 | I189: 45500 | M189: 7000 | N189: 45500
A190: Chihuahua | B190: Cuauhtémoc | C190: Marzo | D190: Equipamiento e Infraestructura de los Elementos Policiales y las Instituciones de Seguridad Pública | E190: Equipamiento de las Instituciones de Seguridad Pública. | G190: Municiones para arma larga | H190: 7000 | I190: 70000 | M190: 7000 | N190: 70000
A191: Chihuahua | B191: Cuauhtémoc | C191: Marzo | D191: Equipamiento e Infraestructura de los Elementos Policiales y las Instituciones de Seguridad Pública | E191: Equipamiento de las Instituciones de Seguridad Pública. | G191: Arma larga | H191: 30 | I191: 1200000 | M191: 30 | N191: 1200000
A192: Chihuahua | B192: Cuauhtémoc | C192: Marzo | D192: Equipamiento e Infraestructura de los Elementos Policiales y las Instituciones de Seguridad Pública | E192: Equipamiento de las Instituciones de Seguridad Pública. | G192: Botas | H192: 360 | I192: 792000 | M192: 360 | N192: 792000
A193: Chihuahua | B193: Cuauhtémoc | C193: Marzo | D193: Equipamiento e Infraestructura de los Elementos Policiales y las Instituciones de Seguridad Pública | E193: Equipamiento de las Instituciones de Seguridad Pública. | G193: Pantalón | H193: 360 | I193: 540000 | M193: 360 | N193: 540000
A194: Chihuahua | B194: Cuauhtémoc | C194: Marzo | D194: Equipamiento e Infraestructura de los Elementos Policiales y las Instituciones de Seguridad Pública | E194: Equipamiento de las Instituciones de Seguridad Pública. | G194: Gorra tipo beisbolera | H194: 180 | I194: 63000 | M194: 180 | N194: 63000
A195: Chihuahua | B195: Cuauhtémoc | C195: Marzo | D195: Equipamiento e Infraestructura de los Elementos Policiales y las Instituciones de Seguridad Pública | E195: Equipamiento de las Instituciones de Seguridad Pública. | G195: Camisola y/o camisa | H195: 360 | I195: 432000 | M195: 360 | N195: 432000
A196: Chihuahua | B196: Cuauhtémoc | C196: Marzo | D196: Equipamiento e Infraestructura de los Elementos Policiales y las Instituciones de Seguridad Pública | E196: Equipamiento de las Instituciones de Seguridad Pública. | G196: Chamarra | H196: 180 | I196: 684000 | M196: 180 | N196: 684000
A197: Chihuahua | B197: Cuauhtémoc | C197: Marzo | D197: Profesionalización, Certificación y Capacitación de los elementos policiales y las Instituciones de Seguridad Pública. | E197: Profesionalización y Capacitación de los Elementos Policiales de Seguridad Pública. | G197: Formación Continua (CBFP) | H197: 40 | I197: 140000 | M197: 40 | N197: 140000
A198: Chihuahua | B198: Cuauhtémoc | C198: Marzo | D198: Profesionalización, Certificación y Capacitación de los elementos policiales y las Instituciones de Seguridad Pública. | E198: Profesionalización y Capacitación de los Elementos Policiales de Seguridad Pública. | G198: Evaluación de Competencias Básicas de la Función para Policías Municipales | H198: 40 | I198: 40000 | M198: 40 | N198: 40000
A199: Chihuahua | B199: Cuauhtémoc | C199: Marzo | D199: Profesionalización, Certificación y Capacitación de los elementos policiales y las Instituciones de Seguridad Pública. | E199: Profesionalización y Capacitación de los Elementos Policiales de Seguridad Pública. | G199: Formación Inicial (Activos) | H199: 35 | I199: 700000 | M199: 35 | N199: 700000
A200: Chihuahua | B200: Cuauhtémoc | C200: Marzo | D200: Profesionalización, Certificación y Capacitación de los elementos policiales y las Instituciones de Seguridad Pública. | E200: Profesionalización y Capacitación de los Elementos Policiales de Seguridad Pública. | G200: Formación Inicial (Aspirantes) | H200: 20 | I200: 800000 | M200: 20 | N200: 800000
A201: Chihuahua | B201: Cuauhtémoc | C201: Marzo | D201: Profesionalización, Certificación y Capacitación de los elementos policiales y las Instituciones de Seguridad Pública. | E201: Profesionalización y Capacitación de los Elementos Policiales de Seguridad Pública. | G201: Becas para aspirantes a Policía Municipal | H201: 20 | I201: 300000 | M201: 20 | N201: 300000
... 3394 more rows

Sheet Listas (hidden)
A2: Mes | B2: Estado | C2: Municipio | D2: Programa | E2: Subprograma | F2: Proyecto
A4: Enero | B4: Aguascalientes | C4: Aguascalientes | D4: Impulso al Modelo Nacional de Policía y Justicia Cívica. | E4: Modelo Nacional de Policía. | F4: Prevención de Violencia Escolar
A5: Febrero | B5: Baja California | C5: Calvillo | D5: Profesionalización, Certificación y Capacitación de los elementos policiales y las Instituciones de Seguridad Pública. | E5: Dignificación Policial. | F5: Jóvenes en Prevención
A6: Marzo | B6: Baja California Sur | C6: Jesús María | D6: Equipamiento e Infraestructura de los elementos policiales y las Instituciones de Seguridad Pública | E6: Justicia Cívica. | F6: Prevención de Violencia Familiar y de Genero
A7: Abril | B7: Campeche | C7: San Francisco de los Romo | D7: Prevención Social de la Violencia y la Delincuencia con Participación Ciudadana | E7: Fortalecimiento de las Capacidades de Evaluación en Control de Confianza. | F7: Cultura de Paz, Legalidad y Participación Ciudadana
A8: Mayo | B8: Coahuila | C8: Ensenada | D8: Sistema Nacional de Información | E8: Profesionalización y Capacitación de los Elementos Policiales de Seguridad Pública.
A9: Junio | B9: Colima | C9: Mexicali | E9: Equipamiento de las Instituciones de Seguridad Pública.
A10: Julio | B10: Colima | C10: Playas de Rosarito | E10: Infraestructura de las Instituciones de Seguridad Pública.
A11: Agosto | B11: Chiapas | C11: Tecate | E11: Prevención Social de la Violencia y la Delincuencia con Participación Ciudadana.
A12: Septiembre | B12: Chihuahua | C12: Tijuana | E12: Sistema Nacional de Información, bases de datos del SNSP.
A13: Octubre | B13: Ciudad de México | C13: Comondú | E13: Sistema Nacional de Atención de Llamadas de Emergencias y Denuncias Ciudadanas.
A14: Noviembre | B14: Durango | C14: La Paz | E14: Red Nacional de Radiocomunicación.
A15: Diciembre | B15: Guanajuato | C15: Los Cabos | E15: Fortalecimiento de los Sistemas de Videovigilancia y Geolocalización.
B16: Guerrero | C16: Mulegé | E16: Dignificación Policial (Coparticipación)
B17: Hidalgo | C17: Campeche
B18: Jalisco | C18: Carmen
B19: México | C19: Acuña
B20: Michoacán | C20: Matamoros
B21: Morelos | C21: Monclova
B22: Nayarit | C22: Piedras Negras
B23: Nuevo León | C23: Ramos Arizpe
B24: Oaxaca | C24: Saltillo
B25: Puebla | C25: San Pedro
B26: Querétaro | C26: Torreón
B27: Quintana Roo | C27: Colima
B28: San Luis Potosí | C28: Manzanillo
B29: Sinaloa | C29: Tecomán
B30: Sonora | C30: Villa de Álvarez
B31: Tabasco | C31: Chiapa de Corzo
B32: Tamaulipas | C32: Chilón
B33: Tlaxcala | C33: Comitán de Domínguez
B34: Veracruz | C34: Las Margaritas
B35: Yucatán | C35: Ocosingo
B36: Zacatecas | C36: Palenque
C37: San Cristóbal de las Casas
C38: Tapachula
C39: Tonalá
C40: Tuxtla Gutiérrez
C41: Villaflores
C42: Chihuahua
C43: Cuauhtémoc
C44: Delicias
C45: Hidalgo del Parral
C46: Juárez
C47: Álvaro Obregón
C48: Azcapotzalco
C49: Benito Juárez
C50: Coyoacán
C51: Cuajimalpa de Morelos
C52: Cuauhtémoc
C53: Gustavo A. Madero
C54: Iztacalco
C55: Iztapalapa
C56: La Magdalena Contreras
C57: Miguel Hidalgo
C58: Milpa Alta
C59: Tláhuac
C60: Tlalpan
C61: Venustiano Carranza
C62: Xochimilco
C63: Durango
C64: Gómez Palacio
C65: Lerdo
C66: Pueblo Nuevo
C67: Acámbaro
C68: Apaseo el Grande
C69: Celaya
C70: Cortazar
C71: Dolores Hidalgo Cuna de la Independencia Nacional
C72: Guanajuato
C73: Irapuato
C74: León
C75: Pénjamo
C76: Salamanca
C77: Salvatierra
C78: San Felipe
C79: San Francisco del Rincón
C80: San Luis de la Paz
C81: San Miguel de Allende
C82: Silao de la Victoria
C83: Valle de Santiago
C84: Acapulco de Juárez
C85: Chilapa de Álvarez
C86: Chilpancingo de los Bravo
C87: Iguala de la Independencia
C88: Taxco de Alarcón
C89: Zihuatanejo de Azueta
C90: Actopan
C91: Huejutla de Reyes
C92: Ixmiquilpan
C93: Mineral de la Reforma
C94: Pachuca de Soto
C95: Tepeapulco
C96: Tepeji del Río de Ocampo
C97: Tizayuca
C98: Tula de Allende
C99: Tulancingo de Bravo
C100: Chapala
C101: El Salto
C102: Guadalajara
C103: Lagos de Moreno
C104: Ocotlán
C105: Puerto Vallarta
C106: San Juan de los Lagos
C107: San Pedro Tlaquepaque
C108: Tala
C109: Tepatitlán de Morelos
C110: Tlajomulco de Zúñiga
C111: Tonalá
C112: Zapopan
C113: Zapotlán el Grande
C114: Acolman
C115: Almoloya de Juárez
C116: Amecameca
C117: Atizapán de Zaragoza
C118: Atlacomulco
C119: Chalco
C120: Chicoloapan
C121: Chimalhuacán
C122: Coacalco de Berriozábal
C123: Cuautitlán
C124: Cuautitlán Izcalli
C125: Ecatepec de Morelos
C126: Huehuetoca
C127: Huixquilucan
C128: Ixtapaluca
C129: Ixtlahuaca
C130: Jilotepec
C131: La Paz
C132: Lerma
C133: Melchor Ocampo
C134: Metepec
C135: Naucalpan de Juárez
C136: Nezahualcóyotl
C137: Nicolás Romero
C138: San Felipe del Progreso
C139: San Mateo Atenco
C140: Tecámac
C141: Temoaya
C142: Tenancingo
C143: Teoloyucan
C144: Teotihuacán
C145: Tepotzotlán
C146: Texcoco
C147: Tlalnepantla de Baz
C148: Toluca
C149: Tultepec
C150: Tultitlán
C151: Valle de Bravo
C152: Valle de Chalco Solidaridad
C153: Villa Victoria
C154: Zinacantepec
C155: Zumpango
C156: Apatzingán
C157: Hidalgo
C158: La Piedad
C159: Lázaro Cárdenas
C160: Morelia
C161: Pátzcuaro
C162: Tarímbaro
C163: Uruapan
C164: Zamora
C165: Zitácuaro
C166: Cuautla
C167: Cuernavaca
C168: Emiliano Zapata
C169: Jiutepec
C170: Temixco
C171: Xochitepec
C172: Yautepec
C173: Bahía de Banderas
C174: Santiago Ixcuintla
C175: Tepic
C176: Apodaca
C177: Cadereyta Jiménez
C178: García
C179: General Escobedo
C180: Guadalupe
C181: Juárez NL
C182: Linares
C183: Monterrey (Estado)
C184: Monterrey (Municipio)
C185: Pesquería
C186: San Nicolás de los Garza
C187: San Pedro Garza García
C188: Santa Catarina
C189: Heroica Ciudad de Huajuapan de León
C190: Heroica Ciudad de Juchitán de Zaragoza
C191: Oaxaca de Juárez
C192: Salina Cruz
C193: San Juan Bautista Tuxtepec
C194: Santa Cruz Xoxocotlán
C195: Santo Domingo Tehuantepec
C196: Amozoc
C197: Atlixco
C198: Chignahuapan
C199: Cuautlancingo
C200: Huauchinango
C201: Huejotzingo
C202: Izúcar de Matamoros
... 89 more rows
